bitfinex-derivatives/quotes_ETHF0:USTF0_20250106
["timestamp","ask_amount","ask_price","bid_price","bid_amount"]
[1736197877306,0.2715,3681.0,3680.9,41.0715]
[1736197877506,0.2715,3681.0,3680.9,40.8]
[1736197878107,7.17853038,3681.0,3680.9,40.8]
[1736197878306,12.53474609,3681.0,3680.9,40.8]
[1736197878503,14.64772953,3681.0,3680.9,40.8]
[1736197879110,12.49931382,3681.0,3680.9,40.8]
[1736197879713,9.29151382,3681.0,3680.9,40.8]
[1736197880003,7.58595237,3681.0,3680.9,40.8]
[1736197881403,7.31445237,3681.0,3680.9,41.0715]
[1736197881611,7.58595237,3681.0,3680.9,41.0715]
[1736197882110,9.29015335,3681.0,3680.9,41.0715]
[1736197882508,9.29015335,3681.0,3680.9,40.8]
[1736197883306,7.17853038,3681.0,3680.9,40.8]
[1736197884309,7.17853038,3681.0,3680.2,4.23269324]
[1736197884310,0.27155,3680.4,3680.3,0.27155]
[1736197884707,0.27155,3680.4,3680.3,41.07155]
[1736197886408,2.11052871,3680.6,3680.3,40.8]
[1736197886609,2.11052871,3680.6,3680.3,42.94841571]
[1736197886808,0.27154,3680.5,3680.4,0.27153]
[1736197889015,0.27154,3680.5,3680.4,3.47933]
[1736197891526,0.27153,3680.6,3680.5,0.27153]
[1736197892819,0.27152,3680.7,3680.6,0.27152]
[1736197893221,6.90527822,3680.7,3680.6,0.27152]
[1736197894123,2.11052871,3681.0,3680.6,2.14841571]
[1736197894426,2.38202871,3681.0,3680.9,0.2715]
[1736197895323,2.38202871,3681.0,3680.8,3.2078]
[1736197895324,0.27152,3680.9,3680.8,0.27151]
[1736197895524,0.27152,3680.8,3680.7,0.27151]
[1736197896926,6.85916086,3681.0,3680.6,2.14841571]
[1736197897120,2.11052871,3681.1,3681.0,0.2715]
[1736197898019,4.49521884,3681.5,3681.0,0.2715]
[1736197898020,2.11052871,3681.4,3681.3,0.27147]
[1736197898614,2.11052871,3681.4,3681.3,41.07147]
[1736197899221,3.16743446,3681.5,3681.3,41.3361]
[1736197899432,0.80766,3681.6,3681.5,0.27146]
[1736197899723,7.68918802,3681.6,3681.5,0.27146]
[1736197900121,3.14332871,3681.8,3681.3,41.3361]
[1736197900317,0.27145,3681.7,3681.6,0.27145]
[1736197900921,2.62082871,3681.8,3681.4,1.23218]
[1736197901128,2.89226871,3681.8,3681.7,0.27145]
[1736197901327,2.38196871,3681.8,3681.7,0.27145]
[1736197902027,0.27144,3681.8,3681.7,0.27145]
[1736197902930,0.27146,3681.7,3681.6,0.27145]
[1736197904828,8.90822511,3681.9,3681.3,40.8]
[1736197905024,0.27147,3681.4,3681.3,0.27147]
[1736197905621,0.27147,3681.4,3681.3,41.07147]
[1736197905821,0.27147,3681.4,3680.9,6.38110895]
[1736197905822,0.5165,3681.4,3680.7,5.30659324]
[1736197906018,0.2715,3681.0,3680.9,0.27149]
[1736197906322,0.95019,3681.2,3680.9,40.8]
[1736197906519,0.2715,3681.0,3680.9,41.0715]
[1736197907931,0.2715,3681.0,3680.9,40.8]
[1736197908233,6.93627506,3681.0,3680.9,40.8]
[1736197909032,6.93627506,3681.0,3680.9,41.0715]
[1736197909833,6.93627506,3681.0,3680.9,40.8]
[1736197910926,9.08469077,3681.0,3680.9,40.8]
[1736197911630,9.08469077,3681.0,3680.6,3.2078]
[1736197911631,0.27152,3680.7,3680.6,3.2078]
[1736197912025,7.11388996,3680.7,3680.6,44.0078]
[1736197912225,7.11388996,3680.7,3680.6,40.8]
[1736197912226,8.19888996,3680.7,3680.6,40.8]
[1736197912623,8.74958996,3680.7,3680.6,40.8]
[1736197913030,11.91702442,3680.7,3680.6,40.8]
[1736197917236,12.32446993,3680.7,3680.6,40.8]
[1736197918032,17.68068564,3680.7,3680.6,40.8]
[1736197918738,0.27158,3679.9,3679.8,0.27158]
[1736197919137,0.27158,3679.9,3679.8,41.07158]
[1736197919438,9.9854696,3679.9,3679.5,4.23269324]
[1736197919633,0.2716,3679.6,3679.5,4.23269324]
[1736197919931,7.02366448,3679.6,3679.5,45.03269324]
[1736197920531,7.02366448,3679.6,3679.5,40.8]
[1736197921040,6.75206448,3679.6,3679.5,41.07161]
[1736197921437,7.02366448,3679.6,3679.5,40.8]
[1736197923441,6.75206448,3679.6,3679.5,41.07161]
[1736197924338,2.10992727,3679.8,3679.5,40.8]
[1736197924533,2.10992727,3679.8,3679.7,2.42000571]
[1736197925033,3.2078,3680.3,3679.7,2.66791571]
[1736197925238,2.10992727,3680.4,3680.0,2.14841571]
[1736197925438,2.38146727,3680.4,3680.3,0.27155]
[1736197925835,9.18916857,3680.4,3680.3,0.27155]
[1736197926050,9.18916857,3680.4,3680.3,41.07155]
[1736197926240,7.0792413,3680.4,3680.3,41.07155]
[1736197926550,0.27154,3680.4,3680.3,41.07155]
[1736197927948,0.27154,3680.4,3680.3,40.8]
[1736197928542,0.27154,3680.4,3680.3,41.07155]
[1736197928948,6.91873701,3680.4,3680.3,41.07155]
[1736197929545,6.64719701,3680.4,3679.7,3.7273]
[1736197929746,0.27158,3680.0,3679.9,0.27157]
[1736197929947,6.70328062,3680.5,3679.7,3.7273]
[1736197930245,6.97484062,3680.2,3680.1,0.27155]
[1736197930638,0.27156,3680.2,3680.1,0.27155]
[1736197931344,4.26,3680.6,3679.9,40.8]
[1736197931345,0.27155,3680.4,3680.3,0.27154]
[1736197931744,7.16177509,3680.4,3680.3,0.27154]
[1736197933445,6.89022509,3680.4,3680.3,0.27154]
[1736197933749,2.38144727,3680.8,3680.7,0.27151]
[1736197934141,9.30428461,3680.8,3680.7,0.27151]
[1736197934441,2.10992727,3680.8,3680.7,0.27151]
[1736197934646,0.27153,3680.7,3680.6,0.27152]
[1736197934847,0.27153,3680.7,3680.6,41.07152]
[1736197937050,0.27153,3680.7,3680.6,40.8]
[1736197937351,0.27153,3680.7,3680.6,41.07153]
[1736197939250,0.27153,3680.7,3680.6,40.8]
[1736197939550,0.27153,3680.7,3680.6,41.07153]
[1736197939742,0.27153,3680.7,3680.6,40.8]
[1736197939946,0.27153,3680.7,3680.6,41.07153]
[1736197943152,0.27153,3680.7,3680.6,40.8]
[1736197943348,12.58315872,3680.7,3680.6,40.8]
[1736197945054,13.66815872,3680.7,3680.6,40.8]
[1736197945454,14.18975872,3680.7,3680.6,40.8]
[1736197946655,17.76211471,3680.7,3680.6,40.8]
[1736197948460,14.5972238,3680.7,3680.6,40.8]
[1736197949453,0.27158,3680.1,3680.0,0.27156]
[1736197949866,0.27158,3680.1,3680.0,40.8]
[1736197950161,7.15076618,3680.1,3680.0,40.8]
[1736197951359,7.15076618,3680.1,3680.0,41.07157]
[1736197951654,7.15076618,3680.1,3680.0,40.8]
[1736197951859,7.15076618,3680.1,3680.0,41.07157]
[1736197952866,9.26291178,3680.1,3680.0,41.07157]
[1736197953363,9.26291178,3680.1,3680.0,40.8]
[1736197953763,9.81281178,3680.1,3680.0,40.8]
[1736197955164,0.27161,3679.5,3679.4,4.50430324]
[1736197955467,0.27161,3679.5,3679.4,4.23269324]
[1736197955662,0.27161,3679.5,3679.4,45.03269324]
[1736197955865,7.20589266,3679.5,3679.4,45.03269324]
[1736197956869,7.20589266,3679.5,3679.4,41.07161]
[1736197962081,7.20589266,3679.5,3679.4,40.8]
[1736197962579,7.73329266,3679.5,3679.4,40.8]
[1736197962778,7.73329266,3679.5,3679.4,41.07161]
[1736197963479,9.04811176,3679.5,3679.4,41.07161]
[1736197963881,2.1138291,3679.5,3679.4,43.22002571]
[1736197965081,0.27159,3679.7,3679.6,0.2716]
[1736197968481,2.3854191,3679.8,3679.7,0.27159]
[1736197968884,9.09106196,3679.8,3679.7,0.27159]
[1736197969279,9.09106196,3679.8,3679.4,42.94841571]
[1736197969280,8.81947196,3679.8,3679.4,40.8]
[1736197969477,0.27161,3679.5,3679.4,40.8]
[1736197969678,0.5598,3679.7,3679.0,5.36099324]
[1736197969882,0.27164,3679.1,3679.0,4.50433324]
[1736197970090,1.76545,3679.4,3678.9,6.35610086]
[1736197970091,0.27164,3679.0,3678.9,6.62775086]
[1736197970382,0.27164,3679.0,3678.9,47.15610086]
[1736197970784,7.63276779,3679.0,3678.9,47.15610086]
[1736197971283,7.63276779,3679.0,3678.9,40.8]
[1736197971891,10.84056779,3679.0,3678.9,40.8]
[1736197972880,11.2482223,3679.0,3678.9,40.8]
[1736197974392,10.9765823,3679.0,3678.4,0.27169]
[1736197974685,0.27168,3678.5,3678.4,0.27169]
[1736197974898,0.27169,3678.4,3678.3,3.47949]
[1736197975394,0.27169,3678.4,3678.3,44.27949]
[1736197976891,0.27168,3678.6,3678.5,0.27167]
[1736197977492,6.67738124,3678.6,3678.0,1.0897]
[1736197977689,0.27171,3678.2,3678.1,0.2717]
[1736197978795,0.27171,3678.2,3678.1,41.0717]
[1736197980298,0.27171,3678.2,3678.1,40.8]
[1736197981786,3.47951,3678.2,3678.1,40.8]
[1736197983493,3.47951,3678.2,3676.9,4.26502764]
[1736197983494,9.89313048,3678.2,3676.9,4.81812764]
[1736197983698,9.89313048,3678.2,3676.9,5.08992764]
[1736197983699,0.2718,3677.0,3676.9,5.08992764]
[1736197984100,0.2718,3677.0,3676.9,45.88992764]
[1736197984901,0.2718,3677.0,3676.9,41.6249]
[1736197985299,0.2718,3677.0,3676.9,41.0718]
[1736197985501,0.2718,3677.0,3676.9,40.8]
[1736197986800,0.2718,3677.0,3676.9,41.0718]
[1736197987202,0.2718,3677.0,3676.9,40.8]
[1736197987802,0.2718,3677.0,3676.9,41.0718]
[1736197988598,0.2718,3677.0,3676.9,40.8]
[1736197988804,5.35621571,3677.3,3676.9,40.8]
[1736197989106,0.27179,3677.1,3677.0,0.27179]
[1736197989602,6.82513061,3677.1,3677.0,0.27179]
[1736197989791,6.82513061,3677.1,3676.9,40.8]
[1736197989792,3.2078,3677.7,3676.9,42.94841571]
[1736197989994,0.5353,3677.8,3677.0,3.2078]
[1736197990202,0.27176,3677.5,3677.4,0.27176]
[1736197990402,0.27176,3677.5,3677.4,41.07176]
[1736197990602,0.27176,3677.5,3677.4,40.8]
[1736197990805,0.80704,3677.8,3677.4,40.8]
[1736197991109,2.64883401,3678.0,3677.4,44.0078]
[1736197991302,6.8327215,3677.7,3677.6,0.27175]
[1736197991498,6.8327215,3677.9,3677.8,0.27173]
[1736197991701,2.10883401,3678.0,3677.8,2.14841571]
[1736197991907,2.10883401,3678.0,3677.9,0.27172]
[1736197992099,2.10883401,3678.0,3677.9,0.81762]
[1736197992611,3.7581,3678.6,3677.9,0.5459]
[1736197992903,7.20776944,3678.4,3678.3,0.27169]
[1736197993918,6.93606944,3678.4,3678.3,0.27169]
[1736197995606,6.93606944,3678.4,3678.3,41.07169]
[1736197995809,0.5503,3678.6,3678.5,0.27168]
[1736197996205,7.32166878,3678.6,3678.5,0.27168]
[1736197996507,7.32166878,3678.6,3678.5,41.07168]
[1736197996908,7.59333878,3678.6,3678.5,41.07168]
[1736197997106,7.04303878,3678.6,3678.5,41.07168]
[1736197997306,0.82074,3679.1,3679.0,0.27164]
[1736197997512,0.27163,3679.2,3679.1,0.27164]
[1736197997712,6.84408382,3679.2,3679.1,0.27164]
[1736197997912,6.93748209,3679.3,3679.2,0.27163]
[1736197998113,0.27163,3679.3,3679.2,0.27163]
[1736197998614,6.66585209,3679.3,3678.8,3.2078]
[1736197998919,0.27165,3679.0,3678.9,0.27165]
[1736198000120,0.27165,3678.9,3678.8,3.47946]
[1736198000321,1.22814,3679.5,3679.0,0.27164]
[1736198000608,0.27165,3679.1,3679.0,0.27164]
[1736198005016,0.5491,3679.5,3678.8,3.2078]
[1736198005211,0.27165,3678.9,3678.8,3.47946]
[1736198005418,0.27165,3678.9,3678.8,3.2078]
[1736198007425,0.27165,3678.9,3678.8,3.47946]
[1736198008019,0.27165,3678.9,3678.8,0.27166]
[1736198009830,0.27167,3678.8,3678.7,0.27166]
[1736198011733,0.27167,3678.6,3678.5,41.07168]
[1736198015428,0.27167,3678.6,3678.5,40.8]
[1736198018433,0.27167,3678.6,3678.5,41.07168]
[1736198018737,0.27167,3678.6,3678.5,40.8]
[1736198019232,0.27167,3678.6,3678.5,41.07168]
[1736198019438,0.27167,3678.7,3678.6,0.27167]
[1736198019732,7.06679673,3678.7,3678.6,0.27167]
[1736198020635,0.81006,3678.8,3678.7,0.27167]
[1736198022137,0.27167,3678.7,3678.6,0.27167]
[1736198022536,0.5384,3678.8,3678.5,40.8]
[1736198022839,0.27167,3678.6,3678.5,41.07168]
[1736198023134,0.27167,3678.6,3678.5,40.8]
[1736198023340,7.20217372,3678.6,3678.5,40.8]
[1736198024038,0.27167,3678.6,3678.5,40.8]
[1736198026234,0.5384,3678.8,3678.5,40.8]
[1736198026434,0.27167,3678.7,3678.6,0.27167]
[1736198026636,7.09684364,3678.7,3678.6,0.27167]
[1736198030739,6.82517364,3678.7,3678.6,0.27167]
[1736198031041,0.27167,3678.7,3678.6,0.78137]
[1736198031243,0.27167,3678.7,3678.6,1.30207]
[1736198031440,0.5297,3679.0,3678.6,1.0304]
[1736198031647,0.5297,3679.0,3678.9,0.27164]
[1736198031648,0.27165,3679.0,3678.9,0.27164]
[1736198034043,0.5156,3679.1,3678.6,1.0304]
[1736198034341,0.27167,3678.8,3678.7,0.27165]
[1736198035544,0.27167,3678.7,3678.6,0.27167]
[1736198035745,0.27167,3678.6,3678.3,4.26502764]
[1736198036045,0.27169,3678.4,3678.3,4.26502764]
[1736198036244,0.27169,3678.4,3678.3,45.06502764]
[1736198037151,0.27169,3678.4,3678.3,40.8]
[1736198037152,2.38052401,3678.4,3678.3,40.8]
[1736198037346,2.38052401,3678.4,3678.3,41.0717]
[1736198038751,0.27169,3678.4,3678.3,41.0717]
[1736198039549,0.78809,3678.4,3678.3,40.8]
[1736198039950,3.95312917,3678.4,3678.3,40.8]
[1736198040556,3.95312917,3678.4,3678.3,41.0717]
[1736198041657,3.95312917,3678.4,3678.3,40.8]
[1736198042755,3.95312917,3678.4,3678.3,41.0717]
[1736198043059,1.19576522,3678.4,3678.3,41.0717]
[1736198043552,1.19287716,3678.4,3678.3,41.0717]
[1736198043955,0.92407522,3678.4,3678.3,41.0717]
[1736198044150,0.40767522,3678.4,3678.3,43.22011571]
[1736198044346,4.22375884,3678.5,3678.4,0.27169]
[1736198044654,4.49543884,3678.5,3678.4,0.27169]
[1736198045055,5.60283884,3678.5,3678.4,0.27169]
[1736198045257,0.27169,3678.4,3678.3,40.8]
[1736198045459,0.27169,3678.4,3678.3,41.0717]
[1736198046760,0.27169,3678.4,3678.3,40.8]
[1736198046958,2.38743651,3678.4,3678.3,40.8]
[1736198047855,0.2717,3678.3,3678.2,0.2717]
[1736198048457,0.2717,3678.3,3678.2,41.0717]
[1736198049258,0.2717,3678.3,3678.2,40.8]
[1736198049554,3.58024888,3678.3,3678.1,3.2078]
[1736198049756,3.58024888,3678.3,3677.8,4.26502764]
[1736198050056,0.27173,3677.9,3677.8,4.26502764]
[1736198050458,0.27173,3677.9,3677.8,45.06502764]
[1736198050651,0.78123,3677.9,3677.8,45.06502764]
[1736198050956,2.89630623,3677.9,3677.8,40.8]
[1736198051354,9.56038974,3677.9,3677.8,40.8]
[1736198051858,0.27174,3677.7,3677.6,4.26502764]
[1736198052258,7.1124462,3677.7,3677.6,45.33677764]
[1736198052760,7.1124462,3677.7,3677.6,41.07175]
[1736198054052,9.22494372,3677.7,3677.6,41.07175]
[1736198054561,9.22494372,3677.7,3677.6,40.8]
[1736198055555,9.22494372,3677.7,3677.6,41.07175]
[1736198056957,14.58115943,3677.7,3677.6,40.8]
[1736198057169,0.27179,3677.0,3676.9,4.26502764]
[1736198057461,0.27179,3677.0,3676.9,4.53681764]
[1736198057663,0.27179,3677.0,3676.9,45.33681764]
[1736198057861,0.27178,3677.2,3677.0,0.27179]
[1736198058067,2.11249752,3677.2,3676.9,42.94841571]
[1736198058363,2.11249752,3677.2,3677.1,3.47958]
[1736198058966,2.11249752,3677.2,3677.1,44.27958]
[1736198059965,0.27176,3677.5,3677.3,0.27177]
[1736198060761,3.17859752,3677.8,3677.2,0.4548]
[1736198060966,0.27176,3677.5,3677.3,0.27177]
[1736198061460,3.17859752,3677.8,3677.2,0.4548]
[1736198061659,0.27176,3677.5,3677.3,0.27177]
[1736198062066,6.38639752,3677.8,3677.2,0.4548]
[1736198062254,0.27176,3677.5,3677.3,0.27177]
[1736198062857,0.27175,3677.6,3677.4,0.27176]
[1736198063170,6.83895369,3677.7,3677.2,0.4548]
[1736198063364,0.27176,3677.5,3677.2,0.4548]
[1736198063662,0.27176,3677.5,3677.4,0.27176]
[1736198065057,0.27177,3677.3,3677.2,0.72657]
[1736198065260,0.27178,3677.2,3677.1,41.07178]
[1736198067573,0.27178,3677.2,3677.1,40.8]
[1736198069468,0.27178,3677.3,3677.2,0.27177]
[1736198069673,0.27178,3677.2,3677.1,41.07178]
[1736198070875,0.27178,3677.3,3677.2,0.27177]
[1736198071067,0.27176,3677.5,3677.4,0.27176]
[1736198071776,0.27177,3677.4,3677.3,0.27176]
[1736198072676,2.11249752,3677.6,3677.4,0.27175]
[1736198072677,0.27176,3677.5,3677.4,0.27175]
[1736198072877,2.38424752,3677.6,3677.5,0.27175]
[1736198073078,5.84859752,3677.8,3677.2,3.26765571]
[1736198073272,5.84859752,3677.8,3677.7,0.27174]
[1736198073472,2.91252752,3677.8,3677.7,0.27174]
[1736198073682,9.74307738,3677.8,3677.7,40.8]
[1736198074480,7.63057986,3677.8,3677.7,40.8]
[1736198076479,7.63057986,3677.8,3677.7,41.07174]
[1736198076975,7.35884986,3677.8,3677.7,41.07174]
[1736198077176,6.83054986,3677.8,3677.7,41.07174]
[1736198077377,2.38421752,3678.0,3677.7,40.8]
[1736198077586,2.38421752,3678.0,3677.9,0.27173]
[1736198078073,0.27172,3678.0,3677.9,0.27173]
[1736198079577,0.8832,3678.1,3677.7,40.8]
[1736198079783,0.27173,3677.8,3677.7,40.8]
[1736198080977,0.27173,3677.8,3677.7,41.07174]
[1736198081978,0.27173,3677.8,3677.7,40.8]
[1736198082283,0.27173,3677.8,3677.7,41.07174]
[1736198083075,2.38422752,3677.8,3677.7,41.07174]
[1736198085785,9.27291154,3677.8,3677.7,40.8]
[1736198087087,7.5681837,3677.8,3677.7,40.8]
[1736198088584,11.79317874,3677.8,3677.7,40.8]
[1736198089986,11.79317874,3677.8,3676.9,0.4252]
[1736198089987,12.60544874,3677.8,3676.9,3.2078]
[1736198090290,0.27179,3677.0,3676.9,3.47959]
[1736198090983,0.27179,3677.0,3676.9,44.27959]
[1736198091183,1.3265,3677.2,3676.9,44.0078]
[1736198091390,3.43783814,3677.2,3677.1,0.27178]
[1736198091895,0.27179,3677.0,3676.9,44.0078]
[1736198092087,0.27179,3677.0,3676.9,44.2796]
[1736198093588,0.27179,3677.0,3676.9,44.0078]
[1736198093786,0.72739,3677.0,3676.9,44.0078]
[1736198094992,0.72739,3677.0,3676.9,44.2796]
[1736198095584,3.16605814,3677.1,3676.9,44.0078]
[1736198095784,3.16605814,3677.1,3677.0,0.27179]
[1736198096392,3.16605814,3677.1,3677.0,2.42020571]
[1736198096592,2.11131853,3677.2,3677.1,0.27178]
[1736198096796,2.11131853,3677.2,3677.1,1.17808]
[1736198097195,2.11131853,3677.2,3677.1,41.97808]
[1736198098195,0.27176,3677.5,3677.4,0.27176]
[1736198098493,7.11368748,3677.2,3677.1,51.17697122]
[1736198099390,7.11368748,3677.2,3677.1,40.8]
[1736198100498,10.27974562,3677.2,3677.1,40.8]
[1736198102596,3.43783814,3677.2,3677.1,40.8]
[1736198103691,3.43783814,3677.2,3677.1,41.07179]
[1736198103885,3.16605814,3677.2,3677.1,41.07179]
[1736198104392,3.16605814,3677.2,3677.1,41.48969]
[1736198104592,2.11129314,3677.4,3677.3,0.27177]
[1736198106287,0.27176,3677.4,3677.3,0.27177]
[1736198106491,0.27177,3677.3,3677.2,0.27177]
[1736198106694,0.27178,3677.2,3677.1,41.07178]
[1736198110393,2.38307314,3677.3,3677.2,0.27178]
[1736198111089,2.11129314,3677.3,3677.2,2.42019571]
[1736198111294,2.03825128,3677.5,3677.4,0.27176]
[1736198111490,2.03825128,3677.5,3677.4,3.47956]
[1736198111685,2.03825128,3677.5,3677.4,8.47956]
[1736198111686,1.42275128,3677.5,3677.4,8.47956]
[1736198111895,1.42275128,3677.5,3677.4,49.27956]
[1736198112697,0.4356,3678.3,3677.4,49.27956]
[1736198112698,0.7073,3678.3,3677.4,61.54811983]
[1736198112896,0.7073,3678.3,3678.2,0.2717]
[1736198113198,0.4356,3678.3,3678.2,0.2717]
[1736198113494,0.4356,3678.3,3678.2,41.0717]
[1736198113696,4.22499504,3678.6,3678.5,0.27168]
[1736198114494,0.447,3678.7,3678.6,0.27167]
[1736198118898,0.71867,3678.7,3678.6,0.27167]
[1736198119098,0.447,3678.7,3678.6,0.27167]
[1736198119301,0.71867,3678.7,3678.6,0.27167]
[1736198119597,0.447,3678.7,3678.6,0.27167]
[1736198121700,0.8589,3678.8,3678.7,0.27167]
[1736198122000,0.27166,3678.9,3678.8,0.27166]
[1736198124498,2.52472783,3679.2,3678.3,5.35621571]
[1736198124701,0.27167,3678.8,3678.7,0.27166]
[1736198125100,0.27169,3678.5,3678.4,0.27169]
[1736198125396,2.82755571,3678.9,3678.3,3.2078]
[1736198125397,2.14841571,3678.9,3678.3,3.2078]
[1736198125601,0.27167,3678.7,3678.6,0.27166]
[1736198128701,2.52472783,3679.2,3678.3,5.35621571]
[1736198129003,7.15330929,3679.1,3679.0,0.27164]
[1736198129603,7.15330929,3679.1,3679.0,41.07164]
[1736198133403,6.88165929,3679.1,3679.0,41.07164]
[1736198133606,0.27159,3679.7,3679.6,0.27159]
[1736198134109,7.12399103,3679.7,3679.6,0.27159]
[1736198134506,6.85240103,3679.7,3679.6,0.27159]
[1736198134908,7.16903245,3680.0,3679.9,0.27158]
[1736198135115,0.27155,3680.3,3680.2,0.27156]
[1736198135713,0.27155,3680.3,3680.2,41.07156]
[1736198137310,3.2078,3680.7,3680.2,40.8]
[1736198137516,0.27154,3680.5,3680.4,0.27153]
[1736198137921,0.27153,3680.6,3680.5,0.27153]
[1736198138421,6.74259521,3680.6,3680.2,40.8]
[1736198138623,0.27155,3680.4,3680.3,0.27154]
[1736198139018,7.01414521,3680.4,3680.3,0.27154]
[1736198139414,6.74259521,3680.4,3680.3,0.27154]
[1736198139616,0.27153,3680.6,3680.5,0.27153]
[1736198141018,0.27152,3680.7,3680.3,0.95042]
[1736198141216,0.27152,3680.7,3680.6,0.27153]
[1736198142819,0.27154,3680.5,3680.4,0.27154]
[1736198146327,0.27153,3680.7,3680.6,0.27152]
[1736198148125,3.2078,3681.1,3680.4,2.14841571]
[1736198148324,0.27151,3681.0,3680.9,0.2715]
[1736198148726,0.27151,3681.0,3680.9,41.0715]
[1736198152625,0.27149,3681.2,3681.1,0.27148]
[1736198153027,6.92950375,3681.2,3681.1,0.27148]
[1736198153832,6.65801375,3681.2,3680.9,40.8]
[1736198154132,0.2715,3681.1,3681.0,0.27149]
[1736198154523,7.06863331,3681.1,3681.0,0.27149]
[1736198157920,7.06863331,3681.1,3680.9,40.8]
[1736198157921,0.2715,3681.0,3680.9,41.0715]
[1736198159731,6.79713331,3681.1,3681.0,0.2715]
[1736198159932,7.06862331,3681.1,3681.0,0.2715]
[1736198163238,0.2715,3681.0,3680.9,40.8]
[1736198163737,6.79713331,3681.1,3680.9,40.8]
[1736198163931,6.79713331,3681.1,3681.0,0.2715]
[1736198164440,7.06862331,3681.1,3681.0,0.2715]
[1736198164639,0.2715,3681.0,3680.9,40.8]
[1736198164932,0.2715,3681.0,3680.9,41.0715]
[1736198166638,0.2715,3681.0,3680.9,40.8]
[1736198166838,0.698,3681.0,3680.9,41.0715]
[1736198169136,0.698,3681.0,3680.9,40.8]
[1736198169738,0.698,3681.0,3680.9,41.0715]
[1736198170339,0.698,3681.0,3680.9,40.8]
[1736198171840,0.698,3681.0,3680.9,41.0715]
[1736198172035,0.698,3681.0,3680.9,40.8]
[1736198172235,0.698,3681.0,3680.9,41.0715]
[1736198175039,0.4265,3681.0,3680.9,41.0715]
[1736198175240,0.698,3681.0,3680.9,41.0715]
[1736198175440,0.4265,3681.0,3680.9,41.0715]
[1736198175641,0.4248,3681.1,3681.0,0.2715]
[1736198176848,0.69629,3681.1,3681.0,0.2715]
[1736198177342,1.14039,3681.1,3681.0,0.2715]
[1736198180241,1.14039,3681.1,3680.9,40.8]
[1736198180242,0.8689,3681.1,3680.9,40.8]
[1736198180542,0.2715,3681.0,3680.9,41.0715]
[1736198181145,0.2715,3681.0,3680.9,40.8]
[1736198181341,6.95390471,3681.0,3680.9,40.8]
[1736198181646,6.95390471,3681.0,3680.9,41.0715]
[1736198182535,6.68240471,3681.0,3680.9,41.0715]
[1736198183147,7.08978851,3681.0,3680.9,41.0715]
[1736198183346,0.4073838,3681.0,3680.9,41.0715]
[1736198184542,0.4248,3681.1,3681.0,0.2715]
[1736198184747,0.4248,3681.1,3681.0,2.41991571]
[1736198185144,0.4501,3681.2,3681.0,2.14841571]
[1736198185345,4.22499504,3681.3,3681.2,0.27148]
[1736198185949,3.1791855,3681.3,3681.2,0.27148]
[1736198187649,3.1791855,3681.6,3681.5,0.27146]
[1736198187848,3.1791855,3681.6,3681.5,3.47926]
[1736198189056,3.4506355,3681.7,3681.5,3.2078]
[1736198189250,3.4506355,3681.7,3681.6,0.27145]
[1736198190561,0.27145,3681.7,3681.6,0.27145]
[1736198190745,4.0355855,3681.8,3681.5,3.2078]
[1736198190949,4.3070255,3681.8,3681.7,0.27144]
[1736198191354,4.3070255,3681.8,3681.3,4.2682098]
[1736198191355,4.0355855,3681.8,3681.3,4.2682098]
[1736198191555,0.27147,3681.4,3681.3,4.2682098]
[1736198192651,0.27147,3681.4,3681.3,2.8816098]
[1736198192850,0.2715,3681.0,3680.9,41.0715]
[1736198194461,0.67878485,3681.0,3680.9,41.0715]
[1736198195764,3.85794765,3681.0,3680.9,41.0715]
[1736198196166,3.58644765,3681.0,3680.9,41.0715]
[1736198196864,3.58644765,3681.0,3680.9,41.4939]
[1736198197166,3.1791628,3681.2,3680.9,41.2224]
[1736198197366,3.4506428,3681.2,3681.1,0.27149]
[1736198197566,3.4506428,3681.2,3680.8,2.82718571]
[1736198197567,0.2715,3681.1,3681.0,0.27149]
[1736198197769,0.2715,3681.1,3681.0,41.07149]
[1736198198164,0.6886,3681.1,3681.0,41.07149]
[1736198198669,3.8677528,3681.1,3681.0,41.07149]
[1736198198860,4.2906528,3681.1,3681.0,40.8]
[1736198199570,7.90582493,3681.1,3681.0,40.8]
[1736198200770,4.72666213,3681.1,3681.0,40.8]
[1736198203477,4.72666213,3681.1,3681.0,41.0715]
[1736198205177,1.51886213,3681.1,3681.0,41.0715]
[1736198206979,1.95246213,3681.1,3681.0,41.0715]
[1736198207177,1.68097213,3681.1,3681.0,41.0715]
[1736198208477,1.95246213,3681.1,3681.0,41.0715]
[1736198208981,5.13236679,3681.1,3681.0,41.0715]
[1736198219390,4.86087679,3681.1,3681.0,41.0715]
[1736198219691,5.13236679,3681.1,3681.0,41.0715]
[1736198221088,4.86087679,3681.1,3681.0,41.0715]
[1736198221291,4.02087679,3681.1,3681.0,41.0715]
[1736198221490,4.29236679,3681.1,3681.0,41.0715]
[1736198224799,4.71826679,3681.1,3681.0,41.0715]
[1736198224998,4.71826679,3681.1,3681.0,42.04526998]
[1736198225295,4.02087679,3681.1,3681.0,42.04526998]
[1736198225494,3.58727679,3681.1,3681.0,42.04526998]
[1736198226397,3.58727679,3681.3,3681.0,42.04526998]
[1736198226598,3.58727679,3681.3,3681.2,0.27148]
[1736198227001,10.30472571,3681.3,3681.2,0.27148]
[1736198227510,10.30472571,3681.3,3681.2,3.47928]
[1736198227511,3.58727679,3681.3,3681.2,3.47928]
[1736198227812,2.89397679,3681.3,3681.2,3.47928]
[1736198228099,2.20067679,3681.3,3681.2,3.47928]
[1736198228299,2.20067679,3681.3,3681.2,5.63694051]
[1736198229089,2.20067679,3681.3,3681.2,46.43694051]
[1736198230000,0.27142,3682.1,3681.2,50.29587798]
[1736198230197,0.27142,3682.1,3682.0,0.27142]
[1736198230396,4.22499504,3682.2,3681.6,5.36546051]